bitfinex/quotes_ETHUSD_20250822
["timestamp","ask_amount","ask_price","bid_price","bid_amount"]
[1755875863565,0.002,4652.8,4652.7,5.2691463]
[1755875863866,0.002,4652.8,4652.7,9.3351463]
[1755875864236,0.002,4652.8,4652.7,12.59953595]
[1755875865125,0.002,4652.8,4652.7,10.4502463]
[1755875865321,0.002,4652.8,4652.7,12.59853595]
[1755875865760,0.002,4652.8,4652.7,9.6801463]
[1755875866051,0.7513,4652.8,4652.7,4.3681463]
[1755875866253,0.7513,4652.8,4652.7,4.1722]
[1755875866444,0.7505,4652.8,4652.7,4.1722]
[1755875867158,0.0012,4652.8,4652.7,4.47226307]
[1755875867356,0.0012,4652.8,4652.7,4.1722]
[1755875867676,0.0012,4652.8,4652.7,4.9413]
[1755875868022,0.0012,4652.8,4652.7,8.6013]
[1755875868325,0.0012,4652.8,4652.7,10.75058965]
[1755875868525,0.0012,4652.8,4652.7,10.64338965]
[1755875868724,0.0012,4652.8,4652.7,10.75058965]
[1755875868928,0.0012,4652.8,4652.7,8.6013]
[1755875869156,0.0012,4652.8,4652.7,10.75058965]
[1755875869455,0.0012,4652.8,4652.7,8.6013]
[1755875869658,0.0012,4652.8,4652.7,10.75058965]
[1755875870032,0.0012,4652.8,4652.7,8.6013]
[1755875870227,0.0012,4652.8,4652.7,10.75058965]
[1755875870760,0.0012,4652.8,4652.7,10.74858965]
[1755875870927,0.0012,4652.8,4652.7,3.78551262]
[1755875871127,0.0012,4652.8,4652.7,5.93480227]
[1755875871327,0.0012,4652.8,4652.7,7.84751262]
[1755875871560,0.0012,4652.8,4652.7,4.062]
[1755875872358,0.3114,4652.8,4652.2,1.652]
[1755875872569,0.0012,4652.8,4652.4,3.0]
[1755875872763,0.0012,4652.8,4652.5,0.02149382]
[1755875872972,0.0012,4652.8,4652.6,4.062]
[1755875873146,0.0012,4652.8,4652.3,0.66]
[1755875873330,0.0012,4652.8,4652.4,4.061]
[1755875873528,0.0012,4652.8,4652.2,1.652]
[1755875873726,0.0012,4652.8,4652.4,3.0]
[1755875875368,0.0012,4652.8,4652.5,0.68149382]
[1755875875528,0.0012,4652.8,4652.7,6.12328965]
[1755875875870,0.0012,4652.8,4652.7,6.07328965]
[1755875876276,0.0012,4652.8,4652.7,6.52838965]
[1755875876886,0.0012,4652.8,4652.7,6.07328965]
[1755875877292,0.0012,4652.8,4652.7,6.52838965]
[1755875877595,0.002,4653.3,4652.7,6.52838965]
[1755875877596,0.002,4653.3,4653.2,2.14905871]
[1755875877889,0.002,4653.3,4653.2,40.27255864]
[1755875878192,0.022,4653.8,4653.7,2.80882781]
[1755875878392,0.022,4653.8,4653.7,20.46332208]
[1755875878691,0.0212,4653.8,4653.7,15.25017981]
[1755875879075,0.0212,4653.8,4653.7,12.90692781]
[1755875879279,0.0212,4653.8,4653.7,18.69911081]
[1755875879469,0.0212,4653.8,4653.7,15.71483281]
[1755875879666,0.00209869,4653.8,4653.7,20.94268181]
[1755875879866,0.02,4655.8,4654.7,2.80836616]
[1755875880192,0.02,4655.8,4654.7,7.72436616]
[1755875880394,0.02,4655.8,4654.7,11.78136616]
[1755875880561,0.02,4655.8,4654.7,7.72436616]
[1755875880764,0.02,4655.8,4654.7,12.34087352]
[1755875881180,0.02,4655.8,4654.7,1.91968032]
[1755875881381,0.02,4655.8,4655.0,0.66]
[1755875881582,0.02,4655.8,4655.7,0.1072]
[1755875881913,0.02,4655.8,4655.7,8.8152]
[1755875882514,0.7693,4655.8,4655.7,1.7582]
[1755875882883,0.7693,4655.8,4655.7,5.8142]
[1755875883094,0.7693,4655.8,4655.7,1.7582]
[1755875883293,0.7693,4655.8,4655.7,0.1072]
[1755875883585,0.7693,4655.8,4655.7,4.1622]
[1755875883787,0.7693,4655.8,4655.7,0.1072]
[1755875884100,0.02,4655.8,4655.2,3.0]
[1755875884288,0.02,4655.8,4655.1,1.651]
[1755875884289,0.02,4655.8,4655.7,0.1072]
[1755875884491,0.02,4655.8,4655.7,3.1072]
[1755875884798,0.7693,4655.8,4655.7,3.1072]
[1755875884997,0.7693,4655.8,4655.7,7.1622]
[1755875885326,0.02,4655.8,4655.7,7.1622]
[1755875886440,0.7693,4655.8,4655.7,3.1072]
[1755875886587,0.7693,4655.8,4655.7,0.1072]
[1755875887590,0.7693,4655.8,4655.0,1.651]
[1755875887937,0.46062127,4655.7,4654.8,0.02]
[1755875888530,0.3018,4654.9,4654.8,0.02]
[1755875888892,0.7616,4654.9,4654.8,0.1272]
[1755875889090,0.02,4655.8,4654.8,0.1272]
[1755875889296,0.3018,4654.9,4654.8,0.1272]
[1755875889492,0.7616,4654.9,4654.8,7.1792]
[1755875889726,0.7616,4654.9,4654.8,3.1272]
[1755875889932,0.7616,4654.9,4654.8,7.1792]
[1755875890146,0.02,4655.8,4654.9,3.0]
[1755875890427,0.02,4655.8,4654.8,4.072]
[1755875890636,0.02,4655.8,4655.7,0.1072]
[1755875890942,0.3218,4655.8,4655.7,0.1072]
[1755875891164,0.321,4655.8,4655.7,0.12867904]
[1755875891323,0.0192,4655.8,4655.7,0.12867904]
[1755875891719,0.0192,4655.8,4655.7,0.78867904]
[1755875891957,0.0192,4655.8,4655.7,0.7672]
[1755875892160,0.0192,4655.8,4655.7,7.8182]
[1755875892371,0.0192,4655.8,4655.7,3.1072]
[1755875892372,0.321,4655.8,4655.7,3.1072]
[1755875892566,0.7808,4655.8,4655.7,3.1072]
[1755875892879,0.7808,4655.8,4655.7,0.1072]
[1755875893955,0.7808,4655.8,4654.7,0.1072]
[1755875893956,0.888,4655.8,4654.7,0.1072]
[1755875894158,0.321,4655.8,4655.0,0.1072]
[1755875894332,0.321,4655.8,4654.8,0.0214832]
[1755875894333,0.4598,4655.7,4654.9,3.0]
[1755875894527,0.4598,4655.7,4654.9,4.651]
[1755875894756,0.4598,4655.7,4655.6,0.1072]
[1755875895009,0.7616,4655.7,4655.6,0.1072]
[1755875896526,0.78312127,4655.7,4654.7,0.1607077]
[1755875896734,0.4598,4655.6,4654.1,1.651]
[1755875896936,0.3018,4654.2,4654.1,1.651]
[1755875897149,0.7616,4654.2,4653.8,0.02]
[1755875897322,0.48132127,4654.1,4653.8,0.02]
[1755875897527,0.3018,4653.9,4653.8,0.02]
[1755875897773,0.32332127,4653.9,4653.8,0.02]
[1755875897927,0.78312127,4653.9,4653.8,0.02]
[1755875898433,0.7616,4653.9,4653.8,0.02]
[1755875898649,0.3018,4653.9,4653.8,0.1272]
[1755875898969,0.7616,4653.9,4653.8,0.1272]
[1755875899322,0.7616,4653.9,4653.8,0.02]
[1755875900528,0.8688,4653.9,4653.8,0.02]
[1755875900832,0.7616,4653.9,4653.8,0.02]
[1755875903343,0.7608,4653.9,4653.8,0.02]
[1755875903682,1.651,4654.5,4653.8,0.02]
[1755875903683,0.4598,4654.5,4653.8,0.02]
[1755875903964,1.652,4655.3,4653.9,0.02148735]
[1755875904170,0.02152127,4655.2,4653.9,0.02148735]
[1755875904330,0.02152127,4655.2,4653.8,0.02]
[1755875904530,0.4598,4655.1,4653.8,0.02]
[1755875904778,0.02152127,4655.0,4653.8,0.02]
[1755875905063,0.02152127,4655.0,4653.9,0.02148735]
[1755875905272,0.02152127,4655.0,4653.8,0.02]
[1755875905482,0.3018,4653.9,4653.8,0.02]
[1755875905974,0.7616,4653.9,4653.8,0.02]
[1755875906181,0.02152127,4654.8,4653.8,0.02]
[1755875906347,0.3018,4653.9,4653.8,0.02]
[1755875906677,0.7616,4653.9,4653.8,0.02]
[1755875908934,5.698,4655.3,4653.8,0.02]
[1755875908935,0.4598,4655.0,4653.8,0.02]
[1755875909175,0.02152127,4654.9,4653.8,0.02]
[1755875909344,0.4598,4655.0,4653.8,0.02]
[1755875909756,0.02152127,4654.9,4653.8,0.02]
[1755875910157,0.4598,4654.8,4653.8,0.02]
[1755875910334,1.652,4655.3,4653.9,0.02148735]
[1755875910335,0.02152127,4654.7,4653.9,0.02148735]
[1755875910531,0.4598,4655.5,4653.9,0.68148735]
[1755875910973,0.02152127,4655.4,4655.2,0.1072]
[1755875911133,0.1284,4655.8,4655.2,0.1072]
[1755875911134,0.0212,4655.8,4655.2,0.1072]
[1755875911332,0.0212,4655.8,4655.7,0.1072]
[1755875911566,0.323,4655.8,4655.7,0.1072]
[1755875912239,0.7828,4655.8,4655.7,0.1072]
[1755875912465,0.7828,4655.8,4655.3,0.1072]
[1755875912684,0.48132127,4655.7,4654.6,1.81705121]
[1755875912859,0.58852127,4655.7,4655.0,0.1072]
[1755875913286,0.3018,4655.1,4655.0,0.1072]
[1755875913446,0.3018,4655.1,4653.8,0.02]
[1755875913447,0.7616,4655.1,4654.7,0.1072]
[1755875913763,0.7616,4655.1,4654.1,0.1072]
[1755875913764,0.1072,4654.8,4654.1,0.1072]
[1755875913965,0.48132127,4654.7,4654.1,0.1072]
[1755875914570,0.4598,4655.4,4653.8,0.04148781]
[1755875914772,0.02152127,4655.3,4654.6,0.1072]
[1755875914962,0.02152127,4655.5,4655.0,0.1072]
[1755875915158,0.4598,4655.4,4655.0,0.1072]
[1755875915364,0.02152127,4655.3,4655.0,0.1072]
[1755875915684,0.002,4655.3,4655.0,0.1072]
[1755875915988,0.002,4655.3,4655.2,0.2873]
[1755875916291,0.002,4655.3,4655.2,0.44502216]
[1755875916451,0.002,4655.3,4655.2,0.55222216]
[1755875916944,0.002,4655.3,4655.2,1.54902216]
[1755875917145,0.002,4655.3,4655.2,1.65622216]
[1755875917350,0.002,4655.3,4655.2,4.65622216]
[1755875917585,0.002,4655.3,4655.2,1.65622216]
[1755875917967,0.002,4655.3,4655.2,5.69722216]
[1755875918165,0.002,4655.3,4655.2,8.69722216]
[1755875918363,0.002,4655.3,4655.2,22.58878557]
[1755875918572,0.0212,4655.8,4655.7,2.80790471]
[1755875918813,0.0212,4655.8,4655.7,7.77288375]
[1755875918989,0.002,4656.2,4656.1,2.80772019]
[1755875919289,0.002,4656.2,4656.1,6.09922019]
[1755875919505,0.002,4656.2,4656.1,3.9515]
[1755875919664,0.002,4656.2,4656.1,8.4802772]
[1755875919858,0.002,4656.2,4656.1,7.9915]
[1755875920169,0.002,4656.2,4656.1,8.4588]
[1755875920486,0.002,4656.2,4656.1,7.3305]
[1755875920662,0.002,4656.2,4656.1,7.039]
[1755875920980,0.002,4656.2,4656.1,3.0]
[1755875921985,0.002,4656.2,4655.7,1.652]
[1755875922163,0.002,4656.2,4656.1,0.2915]
[1755875922358,0.002,4656.2,4656.1,4.3295]
[1755875922601,0.002,4656.2,4656.1,0.7802772]
[1755875922891,0.002,4656.2,4656.1,7.3509772]
[1755875923093,0.002,4656.2,4656.1,7.3295]
[1755875923261,0.002,4656.2,4656.1,7.7968]
[1755875923703,0.002,4656.2,4656.1,7.3295]
[1755875923871,0.002,4656.2,4656.1,3.2915]
[1755875924071,0.002,4656.2,4656.1,3.0]
[1755875924664,0.002,4656.2,4656.1,4.4402772]
[1755875924904,0.002,4656.2,4656.1,8.4772772]
[1755875925107,0.002,4656.2,4656.1,10.60352019]
[1755875925311,0.002,4656.2,4656.1,6.56652019]
[1755875925501,0.002,4656.2,4656.1,10.60252019]
[1755875926079,0.002,4656.2,4656.1,7.9875]
[1755875926332,0.002,4656.2,4656.1,8.4548]
[1755875926510,0.002,4656.2,4656.1,8.4538]
[1755875926723,0.002,4656.2,4656.1,4.9865]
[1755875926897,0.002,4656.2,4656.1,10.60152019]
[1755875927792,0.0012,4656.2,4656.1,10.60152019]
[1755875928311,0.0012,4656.2,4656.1,29.47732395]
[1755875928508,0.0012,4656.2,4656.1,29.58452395]
[1755875928711,0.032,4656.8,4656.7,2.80744346]
[1755875928882,0.02,4658.8,4657.0,3.66]
[1755875929211,0.02,4658.8,4657.7,3.66]
[1755875929511,0.4306,4658.4,4657.7,9.4522]
[1755875929811,0.02,4658.8,4657.7,9.7437]
[1755875929994,0.4306,4658.4,4657.7,9.4522]
[1755875930188,0.4306,4658.4,4657.7,8.7922]
[1755875930394,0.02,4658.8,4657.7,4.7582]
[1755875930395,0.7454,4657.8,4657.7,4.7582]
[1755875930577,0.7454,4657.8,4657.7,3.1072]
[1755875930777,0.3148,4657.8,4657.7,3.1072]
[1755875930984,0.02,4657.8,4657.7,3.1072]
[1755875931424,0.02,4657.8,4657.7,7.1392]
[1755875931611,0.02,4657.8,4657.7,7.30396401]
[1755875931919,0.02,4657.8,4657.7,7.96396401]
[1755875932114,0.02,4657.8,4657.7,3.27196401]
[1755875932322,0.02,4657.8,4657.7,7.30396401]
[1755875932491,0.02,4657.8,4657.7,3.27196401]
[1755875932688,0.02,4657.8,4657.7,8.25446401]
[1755875932891,0.3148,4657.8,4657.7,0.1072]
[1755875933194,0.7454,4657.8,4657.7,0.1072]
[1755875933697,0.7454,4657.8,4656.9,0.66]
[1755875933902,0.7454,4657.8,4657.7,0.1072]
[1755875936088,0.022,4657.8,4657.7,3.0]
[1755875936301,0.3168,4657.8,4657.7,0.1072]
[1755875936623,0.022,4657.8,4657.7,0.1072]
[1755875936999,0.3168,4657.8,4657.7,0.1072]
[1755875937199,0.3168,4657.8,4657.6,3.0]
[1755875937405,0.022,4657.8,4657.7,0.1072]
[1755875937603,0.022,4657.8,4657.7,0.42016982]
[1755875937924,0.022,4657.8,4657.7,0.12866982]
[1755875938103,0.7474,4657.8,4657.7,3.1072]
[1755875939021,0.7474,4657.8,4657.7,0.1072]
[1755875940030,0.7466,4657.8,4657.7,0.1072]
[1755875940404,0.7466,4657.8,4656.2,0.17]
[1755875940605,0.45132127,4657.7,4656.3,0.02147627]
[1755875940803,0.6930534,4657.7,4657.3,0.1072]
[1755875941006,0.2948,4657.4,4656.2,0.17]
[1755875941206,0.1072,4657.2,4656.6,0.1072]
[1755875941427,0.24173213,4657.7,4656.9,0.1072]
[1755875941428,0.02072127,4657.1,4656.9,0.1072]
[1755875941728,0.4306,4657.1,4656.9,0.1072]
[1755875941913,0.31552127,4657.0,4656.2,0.17]
[1755875942094,0.31552127,4657.0,4656.6,0.1072]
[1755875942292,0.4306,4656.9,4656.6,0.1072]
[1755875942494,0.1072,4657.5,4656.6,0.1072]
[1755875942495,0.02072127,4656.8,4656.6,0.1072]
[1755875942693,1.6712,4657.8,4656.6,0.1072]
[1755875942694,0.4306,4657.4,4656.7,0.02147443]
[1755875943094,0.0212,4657.8,4657.3,0.1072]
[1755875943300,0.0212,4657.8,4657.4,0.0214712]
[1755875943494,0.0212,4657.8,4657.7,0.1072]
[1755875944105,0.316,4657.8,4657.7,0.1072]
[1755875944431,0.316,4657.8,4656.8,0.66]
[1755875944432,0.7466,4657.8,4656.7,1.65]
[1755875944630,0.7466,4657.8,4657.7,0.1072]
[1755875944835,0.7466,4657.8,4656.7,1.65]
[1755875944998,0.316,4657.8,4656.7,4.65]
[1755875945197,0.316,4657.8,4656.7,1.65]
[1755875945198,0.4306,4657.7,4656.7,1.65]
[1755875945399,0.2948,4656.8,4656.7,1.65]
[1755875945597,0.2948,4656.8,4656.2,0.32796248]
[1755875945598,0.7254,4656.8,4656.2,0.32796248]
[1755875945807,0.4306,4656.7,4656.3,0.1072]
[1755875946035,0.2948,4656.3,4656.2,0.17]
[1755875946342,2.3754,4656.3,4655.6,0.001]
[1755875946644,0.25826127,4656.2,4655.6,0.001]
[1755875946812,0.55306127,4656.2,4655.6,0.001]
[1755875947136,0.98366127,4656.2,4655.6,0.001]
[1755875947308,0.98366127,4656.2,4655.8,0.02]
[1755875947712,1.18423337,4656.2,4655.8,0.02]
[1755875947909,2.3060867,4656.2,4655.8,0.02]
[1755875948654,2.30586636,4656.2,4655.8,0.02]
[1755875949315,5.00766127,4656.2,4655.8,0.02]
[1755875949515,1.07014,4656.2,4655.8,0.02]
[1755875949727,1.65,4656.3,4655.8,0.02]
[1755875950055,0.002,4657.2,4655.8,0.02]
[1755875950056,0.1072,4656.8,4656.1,0.1082]
[1755875950219,0.002,4657.2,4656.2,0.46827674]
[1755875950423,0.002,4657.2,4656.7,0.1072]
[1755875950752,0.002,4657.2,4657.1,0.393]
[1755875951152,0.7695,4657.2,4657.1,0.1072]
[1755875951537,0.7695,4657.2,4655.8,1.691]
[1755875951751,0.02072127,4657.1,4656.5,0.1072]
[1755875951919,0.3002,4656.6,4656.1,0.001]
[1755875952119,0.02072127,4656.5,4656.1,0.001]
[1755875952321,0.01992127,4656.5,4656.0,0.090851]
[1755875952866,0.01992127,4656.6,4656.4,0.1072]
[1755875953155,0.12712127,4656.6,4655.9,0.1072]
[1755875953469,0.1072,4656.6,4655.9,0.2717535]
[1755875953619,0.01992127,4656.5,4656.2,0.1072]
[1755875953819,0.01992127,4656.7,4656.2,0.1072]
[1755875954053,0.01992127,4656.6,4656.2,0.1072]
[1755875954256,0.01992127,4656.6,4656.2,0.0072]
[1755875954458,0.1072,4657.0,4656.2,0.0072]
[1755875954623,0.4673,4656.6,4655.8,0.04]
[1755875954823,0.01992127,4656.5,4655.8,0.04]
[1755875955138,0.1072,4656.2,4655.8,0.04]
[1755875955342,0.01992127,4656.1,4655.8,0.04]
[1755875955730,0.3002,4655.9,4655.8,0.04]
[1755875955957,0.78742127,4655.9,4655.8,0.04]
[1755875956163,0.89462127,4655.9,4655.8,0.04]
[1755875956940,0.1072,4655.9,4655.8,0.04]
[1755875957146,0.1072,4655.9,4655.8,0.3258]
[1755875957372,0.1072,4655.9,4655.8,0.04]
[1755875957670,0.1072,4656.6,4655.8,0.1472]
[1755875957977,0.01992127,4656.5,4656.3,0.1072]
[1755875958182,0.01992127,4656.9,4656.3,0.1072]
[1755875958332,0.3002,4656.4,4656.3,0.1072]
[1755875958535,0.48722127,4656.9,4656.3,0.1072]
[1755875958767,0.3002,4656.4,4655.8,0.02]
[1755875959142,0.1072,4656.4,4655.8,0.02]
[1755875959342,0.002,4657.2,4656.3,0.2858]
[1755875959541,0.002,4657.2,4657.1,0.1072]
[1755875959862,0.002,4657.2,4657.1,0.393]
[1755875960073,0.002,4657.2,4657.1,0.1072]
[1755875960457,0.002,4657.2,4657.1,0.393]
[1755875960766,0.002,4657.2,4657.1,0.8398]
[1755875960969,0.002,4657.2,4657.1,1.4998]
[1755875962536,0.002,4657.2,4657.1,18.20516033]
[1755875962752,0.002,4657.2,4657.1,6.1508]
[1755875962990,0.002,4657.2,4657.1,5.704]
[1755875963152,0.002,4657.2,4657.1,5.044]
[1755875963487,0.002,4657.2,4657.1,3.1072]
[1755875964385,0.002,4657.2,4655.7,1.651]
[1755875964386,0.7687,4657.2,4655.7,1.651]
[1755875964551,0.01992127,4657.1,4656.8,0.1072]
[1755875964756,0.4673,4657.0,4656.8,0.1072]
[1755875964956,0.01992127,4656.9,4656.8,0.1072]
[1755875965495,0.01992127,4656.9,4655.7,1.651]
[1755875965496,0.02112127,4657.2,4655.7,1.651]
[1755875965664,0.02112127,4657.2,4656.5,0.1072]
[1755875966272,0.02112127,4657.2,4656.0,0.66]
[1755875966478,0.02112127,4657.2,4656.9,0.1072]
[1755875967387,0.0012,4657.2,4657.1,0.1072]
[1755875967553,0.32132127,4657.2,4655.8,0.68]
[1755875967758,0.32132127,4657.2,4656.6,0.1072]
[1755875967956,0.01992127,4657.1,4656.9,0.1072]
[1755875968150,0.0012,4657.2,4656.9,0.1072]
[1755875968388,0.0012,4657.2,4655.8,0.02]
[1755875968389,0.3002,4657.0,4655.8,0.02]
[1755875968589,0.01992127,4656.9,4655.8,0.02]
[1755875969269,0.1072,4656.8,4656.2,0.1072]
[1755875969465,0.01992127,4656.7,4656.2,0.1072]
[1755875970089,0.4685,4657.2,4655.8,0.021]
[1755875970090,0.0012,4657.2,4655.8,0.04247858]
[1755875970294,0.0012,4657.2,4656.4,0.1072]
[1755875970295,0.1072,4657.0,4656.4,0.1072]
[1755875970497,0.16522,4657.1,4656.4,0.1072]
[1755875970793,0.01992127,4657.0,4656.4,0.1072]
[1755875971164,0.0012,4657.2,4656.9,0.2858]
[1755875971363,0.0012,4657.2,4657.1,0.1072]
[1755875971591,0.0012,4657.2,4657.1,0.393]
[1755875971796,0.0012,4657.2,4657.1,0.86127259]
[1755875971973,0.0012,4657.2,4657.1,0.8398]
[1755875972178,0.0012,4657.2,4657.1,1.4998]
[1755875972365,0.0012,4657.2,4657.1,1.52127259]
[1755875972566,0.0012,4657.2,4657.1,8.53427259]
[1755875972797,0.0012,4657.2,4657.1,8.5128]
[1755875973982,0.0012,4657.2,4657.1,8.4056]
[1755875974266,0.0012,4657.2,4657.1,8.5128]
[1755875975093,0.0012,4657.2,4657.1,10.66005902]
[1755875975317,0.0012,4657.2,4657.1,8.5128]
[1755875975869,0.0012,4657.2,4657.1,10.66005902]
[1755875976180,0.0012,4657.2,4657.1,8.5108]
[1755875976572,0.0012,4657.2,4657.1,4.4998]
[1755875976773,0.0004,4657.2,4657.1,8.5108]
[1755875977193,0.0004,4657.2,4657.1,4.4998]
[1755875977394,0.0004,4657.2,4657.1,8.064]
[1755875977766,0.0004,4657.2,4657.1,8.063]
[1755875978484,0.0004,4657.2,4657.1,8.5283]
[1755875978685,0.0004,4657.2,4657.1,8.063]
[1755875978917,0.0004,4657.2,4656.3,2.14762412]
[1755875978918,0.3038,4657.2,4656.2,0.086048]
[1755875979078,0.0004,4657.2,4656.3,4.01]
[1755875979476,0.02032127,4657.2,4656.4,3.0]
[1755875979787,0.02032127,4657.2,4656.3,4.01]
[1755875980169,0.0004,4657.2,4656.4,3.02147581]
[1755875980706,0.0004,4657.2,4657.1,0.3137]
[1755875980876,0.0004,4657.2,4657.1,7.9827]
[1755875981200,0.0004,4657.2,4657.1,8.448]
[1755875981438,0.0004,4657.2,4657.1,8.534031]
[1755875981778,0.0004,4657.2,4657.1,7.9817]
[1755875982203,0.0004,4657.2,4657.1,10.59425902]
[1755875982405,0.0004,4657.2,4657.1,8.447]
[1755875982604,0.0004,4657.2,4657.1,7.667]
[1755875983607,0.0004,4657.2,4657.0,1.65]
[1755875983608,0.3038,4657.2,4657.0,1.65]
[1755875983776,0.3038,4657.2,4657.0,4.65]
[1755875984904,0.0004,4657.2,4657.0,4.65]
[1755875985105,0.0004,4657.2,4657.1,0.02147259]
[1755875985317,0.0004,4657.2,4657.0,4.65]
[1755875986119,0.0004,4657.2,4657.0,3.02147305]
[1755875986624,0.0004,4657.2,4657.0,3.0]
[1755875987810,0.3034,4657.1,4657.0,3.0]
[1755875987978,0.1434,4657.1,4657.0,3.0]
[1755875988180,0.1434,4657.1,4656.3,0.001]
[1755875988395,0.01992127,4657.0,4656.3,0.001]
[1755875988792,0.3034,4656.4,4656.3,0.001]
[1755875989014,0.3026,4656.4,4656.3,0.001]
[1755875989378,0.7308,4656.4,4656.3,0.001]
[1755875989884,0.0004,4657.2,4656.3,3.8872]
[1755875990082,0.0004,4657.2,4657.1,0.1072]
[1755875990780,0.3038,4657.2,4657.1,0.1072]
[1755875990981,0.732,4657.2,4656.6,4.004]
[1755875991182,0.01992127,4657.1,4656.9,0.1072]
[1755875991380,0.7316,4657.0,4656.9,0.1072]
[1755875991915,0.7316,4657.0,4656.3,0.001]
[1755875992115,0.01992127,4656.9,4656.6,0.1072]
[1755875992283,0.3034,4656.7,4656.6,0.1072]
[1755875992479,0.75152127,4656.7,4656.6,0.1072]
[1755875992707,0.7316,4656.7,4656.6,0.1072]
[1755875993120,0.8388,4656.7,4656.3,0.001]
[1755875993424,0.1072,4656.4,4656.3,0.001]
[1755875993631,2.08052127,4656.4,4656.3,0.001]
[1755875993796,2.7595934,4656.4,4656.3,0.001]
[1755875994197,2.7595934,4656.4,4654.3,5.50849901]
[1755875994405,0.1072,4656.1,4655.4,0.1072]
[1755875994593,0.4282,4656.0,4655.5,0.1072]
[1755875994787,0.3034,4655.6,4655.5,0.1072]
[1755875994983,0.7316,4655.6,4654.5,0.01229811]
[1755875995316,0.1072,4656.1,4655.3,0.1072]
[1755875995523,0.02684707,4656.0,4655.3,0.1072]
[1755875995717,0.1072,4656.1,4655.3,0.1072]
[1755875995883,0.24362721,4656.1,4655.7,0.1072]
[1755875996084,0.02684707,4656.0,4655.7,0.1072]
[1755875996329,0.3034,4655.8,4655.7,0.1072]
[1755875996509,0.33024823,4655.8,4655.7,0.1072]
[1755875996711,0.02684707,4656.0,4655.7,0.1072]
[1755875997028,0.3034,4655.8,4655.7,0.1072]
[1755875997330,0.75844823,4655.8,4655.6,0.001]
[1755875997489,0.33024823,4655.8,4655.6,0.001]
[1755875997686,0.4282,4655.7,4655.6,0.001]
[1755875998002,0.8388,4655.7,4655.6,0.001]
[1755875998199,0.8656488,4655.7,4655.6,0.001]
[1755876000826,1.20187386,4655.7,4655.6,0.001]
[1755876001125,1.29521245,4655.7,4655.6,0.001]
[1755876001332,1.32126125,4655.7,4655.6,0.001]
[1755876001627,0.12018739,4655.7,4655.6,0.001]
[1755876001797,0.3302488,4655.7,4655.6,0.001]
[1755876001997,0.4374488,4655.7,4655.6,0.001]
[1755876002790,0.1072,4655.9,4655.6,0.001]
[1755876002989,0.3034,4655.7,4655.6,0.001]
[1755876003523,0.7316,4655.7,4655.1,0.001]
[1755876003824,0.1072,4655.2,4653.7,0.001]
[1755876004000,0.02684938,4655.6,4653.7,0.001]
[1755876004001,0.4106,4654.3,4653.7,0.001]
[1755876004414,0.8388,4654.3,4653.7,0.001]
[1755876004791,0.86565688,4654.3,4653.7,0.001]
[1755876005026,0.86565688,4654.3,4653.3,0.001]
[1755876005027,0.1072,4653.9,4653.3,0.001]
[1755876005224,4.02485977,4653.8,4653.3,0.001]
[1755876005437,0.4106,4653.4,4653.3,0.001]
[1755876005603,0.43746207,4653.4,4653.3,0.001]
[1755876006112,0.86566207,4653.4,4653.3,0.001]
[1755876006447,0.66,4653.3,4652.8,0.021]
[1755876006639,0.3034,4652.9,4652.8,0.021]
[1755876006797,0.4106,4652.9,4652.8,0.021]
[1755876006993,0.86566496,4652.9,4652.8,0.021]
[1755876007392,0.8388,4652.9,4652.8,0.021]
[1755876007806,0.86566496,4652.9,4652.8,0.021]
[1755876008037,1.13258808,4652.9,4652.8,0.021]
[1755876008473,0.66,4652.8,4652.2,0.001]
[1755876008754,1.0733,4652.3,4651.7,0.001]
[1755876009048,0.66,4651.8,4649.8,0.02]
[1755876009268,18.05436033,4652.1,4649.2,0.16065552]
[1755876009269,0.3061,4649.9,4649.2,0.16065552]
[1755876009412,3.0,4649.7,4647.8,0.02]
[1755876009609,3.0,4649.7,4647.9,0.1072]
[1755876009610,0.1072,4648.9,4647.9,0.1072]
[1755876009810,0.1072,4648.9,4647.8,0.02]
[1755876009811,5.7562,4648.9,4647.8,0.02]
[1755876010040,6.2023,4648.9,4647.8,0.02]
[1755876011154,1.7592,4648.9,4647.8,0.02]
[1755876011472,1.7592,4648.9,4648.1,0.1072]
[1755876011604,1.7592,4648.9,4647.8,0.1272]
[1755876011814,1.78608808,4648.9,4647.8,0.02]
[1755876012114,2.27670881,4648.9,4647.8,0.021]
[1755876012433,3.66,4648.8,4647.3,0.001]
[1755876012633,0.66,4648.3,4647.3,0.001]
[1755876012841,0.66,4648.0,4647.3,0.001]
[1755876013150,3.0,4648.1,4647.3,0.001]
[1755876013151,3.66,4647.8,4647.3,0.001]
[1755876013340,0.66,4647.6,4647.3,0.001]
[1755876013537,0.02689618,4647.5,4647.3,0.001]
[1755876013851,3.998,4647.4,4647.3,0.001]
[1755876014162,0.02689618,4647.5,4647.3,0.001]
[1755876014459,1.83060881,4648.9,4647.3,0.4575]
[1755876014617,1.652,4648.9,4647.4,0.01238327]
[1755876014951,0.47298865,4648.8,4647.3,0.001]
[1755876015153,1.8172,4648.9,4647.3,0.001]
[1755876015154,1.652,4648.9,4647.4,0.4565]